[Event "SixDays Budapest GM-A January 2024"]
[Site "Budapest"]
[Date "2024.01.29"]
[Round "4.1"]
[White "Can, Isik"]
[Black "Nagy, Gabor"]
[Result "1/2-1/2"]
[ECO "C68"]
[WhiteElo "2500"]
[BlackElo "2450"]
[Annotator "TA"]
[PlyCount "31"]
[EventDate "2024.01.26"]
[EventType "tourn"]
[EventCountry "HUN"]
[SourceTitle "playchess.com"]
[Source "ChessBase"]
[SourceQuality "1"]
[TimeControl "5400+30"]

{[%evp 9,31,6,25,23,18,21,20,22,12,18,1,0,11,24,6,15,12,0,0,-19,14,-17,-2,-62]} 1. e4 {[%emt 0:11:43]} e5 {[%emt 0:00:12]} 2. Nf3 {[%emt 0:00:04]} Nc6 {[%emt 0:00:09]} 3. Bb5 {[%emt 0:00:05]} a6 {[%emt 0:00:09]} 4. Bxc6 {[%emt 0:00:04]} dxc6 {[%emt 0:00:07]} 5. O-O {[%emt 0:00:04]} Qf6 {[%emt 0:00:18]} 6. d4 {[%emt 0:00:06]} exd4 {[%emt 0:00:06]} 7. Bg5 {[%emt 0:00:05]} Qd6 {[%emt 0:00:07]} 8. Nxd4 {[%emt 0:00:03]} Be7 {[%emt 0:00:07]} 9. Be3 {[%emt 0:00:08]} Nf6 {[%emt 0:00:27]} 10. f3 {[%emt 0:00:06]} c5 {[%emt 0:00:13]} 11. Ne2 {[%emt 0:00:38]} Be6 {[%emt 0:00:21]} 12. b3 {[%emt 0:16:12] Die Stellung ist ausgeglichen.} O-O-O {[%emt 0:07:02]} 13. Qxd6 {[%emt 0:00:29]} Bxd6 {[%emt 0:00:17]} 14. Nd2 {[%emt 0:06:10]} Rhe8 {[%emt 0:02:58]} 15. h3 {[%emt 0:02:59]} Nd7 {[%emt 0:04:40]} 16. f4 {[%emt 0:12:41] Gewichteter Fehlerwert: Weiß=0.05 (makellos) /Schwarz=0.07 (makellos) .  Fehler:       	Weiß=1     	---        Ungenau:       	Weiß=1     	Schwarz=1     OK:         	Weiß=4     	Schwarz=6} (16. Nf4 $11) 1/2-1/2

[Event "SixDays Budapest GM-A January 2024"]
[Site "Budapest"]
[Date "2024.01.29"]
[Round "4.2"]
[White "Sedlak, Nikola"]
[Black "Pribelszky, Bence"]
[Result "1/2-1/2"]
[ECO "A05"]
[WhiteElo "2463"]
[BlackElo "2371"]
[Annotator "TA"]
[PlyCount "119"]
[EventDate "2024.01.26"]
[EventType "tourn"]
[EventCountry "HUN"]
[SourceTitle "playchess.com"]
[Source "ChessBase"]
[SourceQuality "1"]
[TimeControl "5400+30"]

{[%evp 37,119,52,58,43,53,66,63,66,64,59,56,39,35,38,36,35,38,33,34,35,44,29,29,29,32,32,33,28,43,19,43,56,47,12,13,0,0,0,3,-53,-62,-190,-175,-177,-187,-182,-152,-282,-218,-375,-365,-470,-461,-605,-585,-577,-571,-586,-535,-481,-757,-756,-814,-881,-863,-835,-738,-608,-314,-302,0,-340,-170,-170,0,0,0,0,0,0,0,0,0,0]} 1. Nf3 {[%emt 0:00:02]} Nf6 {[%emt 0:04:04]} 2. g3 {[%emt 0:00:32]} b6 {[%emt 0:00:06]} 3. Bg2 {[%emt 0:00:26]} Bb7 {[%emt 0:00:05]} 4. O-O {[%emt 0:00:57]} g6 {[%emt 0:00:25]} 5. d3 {[%emt 0:04:20]} Bg7 {[%emt 0:00:25]} 6. e4 {[%emt 0:00:10]} c5 {[%emt 0:00:17]} 7. e5 {[%emt 0:08:24]} Nd5 {[%emt 0:00:07] A05: Réti Opening: 1 Nf3 Nf6.} 8. Ng5 {[%emt 0:03:25]} Bc6 {[%emt 0:12:35]} 9. d4 {[%emt 0:03:29]} cxd4 {[%emt 0:34:40]} 10. Qxd4 {[%emt 0:00:14]} e6 $146 {[%emt 0:00:06]} ({Predecessor:} 10... Nc7 11. Re1 Bxg2 12. Kxg2 Nc6 13. Qc4 O-O 14. Qh4 h6 15. Nf3 Kh7 16. Ng5+ Kg8 {0-1 Grimm,S (2372)-Morawietz,D (2374) Oberliga NRW 0203 I 2002 (4.2)}) 11. Nf3 {[%emt 0:19:08]} Ne7 {[%emt 0:13:11]} 12. Nbd2 {[%emt 0:04:16]} O-O {[%emt 0:05:46]} 13. Ne4 {[%emt 0:01:28]} Nf5 {[%emt 0:06:46]} 14. Qd3 {[%emt 0:00:16]} Bxe4 {[%emt 0:00:08]} 15. Qxe4 {[%emt 0:00:29]} Nc6 {[%emt 0:00:07]} 16. Bf4 {[%emt 0:01:03]} f6 {[%emt 0:01:42]} 17. Rad1 {[%emt 0:02:11]} fxe5 {[%emt 0:05:40]} 18. Nxe5 {[%emt 0:00:18]} Nxe5 {[%emt 0:00:17]} 19. Bxe5 {[%emt 0:00:37]} d5 {[%emt 0:03:05]} 20. Qe2 {[%emt 0:00:09]} Rc8 {[%emt 0:00:50]} 21. Rfe1 {[%emt 0:02:15]} Bxe5 {[%emt 0:04:25]} 22. Qxe5 {[%emt 0:00:19]} Ng7 {[%emt 0:00:07]} 23. c3 {[%emt 0:00:44]} Qf6 {[%emt 0:00:24]} 24. f4 {[%emt 0:00:54]} Qxe5 {[%emt 0:00:36]} 25. Rxe5 {[%emt 0:00:06]} Kf7 {[%emt 0:01:31]} 26. Bf1 {[%emt 0:01:22]} Rfd8 {[%emt 0:01:31]} 27. Bd3 {[%emt 0:00:26]} Ne8 {[%emt 0:02:14]} 28. Kf2 {[%emt 0:00:34]} Nf6 {[%emt 0:00:45]} 29. h3 {[%emt 0:00:24]} Rd6 {[%emt 0:01:38]} 30. Re2 {[%emt 0:04:33]} a5 {[%emt 0:00:54]} 31. g4 {[%emt 0:00:42]} Nd7 {[%emt 0:00:36]} 32. h4 {[%emt 0:00:58]} Rf8 {[%emt 0:00:38]} 33. Kg3 {[%emt 0:01:25]} Kg7 {[%emt 0:00:47]} 34. Bc2 {[%emt 0:02:18]} Nc5 {[%emt 0:00:13]} 35. h5 {[%emt 0:01:15]} gxh5 {[%emt 0:00:36]} 36. Rh2 {[%emt 0:00:40]} hxg4 {[%emt 0:00:25]} 37. Rxh7+ {[%emt 0:00:08]} Kf6 {[%emt 0:00:47]} 38. f5 {[%emt 0:07:14]} (38. Kxg4 $11 Rg8+ 39. Kf3) 38... exf5 $15 {[%emt 0:00:22]} 39. c4 {[%emt 0:02:25]} ({White must play} 39. Rh6+ $1 $15 Ke5 40. Rxd6 Kxd6 41. c4) 39... Rfd8 {[%emt 0:00:38]} 40. Rh5 {[%emt 0:02:55]} dxc4 {[%emt 0:00:29]} ({Worse is} 40... Ne4+ 41. Kf4 $14) 41. Rxf5+ {[%emt 0:00:19]} (41. Rxd6+ Rxd6 42. Rxf5+ Ke6 $19) 41... Ke7 {[%emt 0:00:12]} 42. Rdf1 {[%emt 0:03:05]} (42. Rh1 $17) 42... Nd3 {[%emt 0:00:48]} 43. Rb5 $2 {[%emt 0:07:43]} (43. b3) 43... Re6 $19 {[%emt 0:00:21]} 44. Bd1 {[%emt 0:01:03]} Re3+ {[%emt 0:00:39]} 45. Kg2 {[%emt 0:00:06]} Ne5 {[%emt 0:00:30]} 46. Kf2 {[%emt 0:01:23]} Rdd3 {[%emt 0:00:20]} 47. Rxb6 {[%emt 0:00:35]} g3+ {[%emt 0:00:40]} 48. Kg1 {[%emt 0:00:05]} Rd2 {[%emt 0:00:31]} 49. Bh5 {[%emt 0:01:21]} g2 {[%emt 0:00:29]} 50. Rf2 {[%emt 0:01:28]} Rxf2 {[%emt 0:00:25]} 51. Kxf2 {[%emt 0:00:06]} Rg3 {[%emt 0:00:35]} 52. Kg1 {[%emt 0:00:06]} Rg5 {[%emt 0:00:26]} 53. Rh6 {[%emt 0:04:17]} Rg3 $2 {[%emt 0:00:35]} ({Better is} 53... Nd3 $19 {[%cal Od3f4] White must now prevent ...Nf4!} 54. Bf3 Nxb2) 54. Be2 $2 {[%emt 0:03:16][%mdl 8192]} (54. Rb6 $1 $11 {and White has nothing to worry.} Nd3 55. Rg6) 54... Nd3 {[%emt 0:00:29]} (54... a4 $142 {Hoping for ...Re3.} 55. a3 Re3 56. Rh7+ Kd6) 55. Rh4 $19 {[%emt 0:00:14]} Re3 $2 {[%emt 0:00:31]} ({Inferior is} 55... Nxb2 56. Bxc4 Rg5 (56... Nxc4 57. Rxc4 Kd6 58. Rc2 $11) 57. Be2 $11) (55... Nf2 $19 {aiming for ...Nh3+.} 56. Bxc4 Nh3+ 57. Rxh3 Rxh3 58. Kxg2 Rh4) 56. Bxd3 $11 {[%emt 0:00:28]} cxd3 {[%emt 0:00:05]} 57. Kxg2 {[%emt 0:00:44]} Re2+ {[%emt 0:00:28]} 58. Kf3 {[%emt 0:00:07]} Rxb2 {[%emt 0:00:06]} 59. Ke3 {[%emt 0:00:12]} Rxa2 {[%emt 0:01:19]} 60. Kxd3 {[%emt 0:00:08]} 1/2-1/2

[Event "SixDays Budapest GM-A January 2024"]
[Site "Budapest"]
[Date "2024.01.29"]
[Round "4.3"]
[White "Pham Tran Gia Phuc"]
[Black "Castellanos Rodriguez, Renier"]
[Result "1/2-1/2"]
[ECO "D53"]
[WhiteElo "2416"]
[BlackElo "2468"]
[Annotator "TA"]
[PlyCount "39"]
[EventDate "2024.01.26"]
[EventType "tourn"]
[EventCountry "HUN"]
[SourceTitle "playchess.com"]
[Source "ChessBase"]
[SourceQuality "1"]
[TimeControl "5400+30"]

{[%evp 26,39,12,0,6,-16,0,0,0,0,0,0,0,0,0,-21]} 1. d4 {[%emt 0:00:04]} Nf6 {[%emt 0:00:10]} 2. c4 {[%emt 0:00:11]} e6 {[%emt 0:00:17]} 3. Nc3 {[%emt 0:00:08]} d5 {[%emt 0:00:07]} 4. Bg5 {[%emt 0:00:09]} Be7 {[%emt 0:00:51]} 5. Nf3 {[%emt 0:00:09]} Nbd7 {[%emt 0:02:45]} 6. e3 {[%emt 0:00:37]} h6 {[%emt 0:00:57]} 7. Bh4 {[%emt 0:00:10]} O-O {[%emt 0:00:24]} 8. cxd5 {[%emt 0:00:10]} exd5 {[%emt 0:02:33]} 9. Bd3 {[%emt 0:00:12]} c6 {[%emt 0:01:33]} 10. O-O {[%emt 0:00:30]} Ne4 {[%emt 0:03:43]} 11. Bxe7 {[%emt 0:09:44]} Qxe7 {[%emt 0:00:04]} 12. Qc2 {[%emt 0:00:08]} Re8 {[%emt 0:03:45]} 13. b4 {[%emt 0:01:56]} Ndf6 {[%emt 0:04:56]} 14. Rab1 {[%emt 0:03:31] The position is equal.} Bf5 {[%emt 0:05:01]} 15. Ne5 {[%emt 0:03:03]} Nxc3 {[%emt 0:01:36]} 16. Qxc3 {[%emt 0:00:07]} Bxd3 {[%emt 0:00:27]} 17. Nxd3 {[%emt 0:00:47]} Ne4 {[%emt 0:01:31]} 18. Qc2 {[%emt 0:00:27]} Nd6 {[%emt 0:00:36]} 19. a4 {[%emt 0:01:52]} a6 {[%emt 0:00:12]} 20. Nf4 {[%emt 0:03:00] Not much happened in this game.   Weighted Error Value: White=0.08 (flawless) /Black=0.03 (flawless) .  OK:         	White=2     	Black=3} 1/2-1/2

[Event "SixDays Budapest GM-A January 2024"]
[Site "Budapest"]
[Date "2024.01.29"]
[Round "4.4"]
[White "Durak, Can"]
[Black "Karamsetty, Jeevan"]
[Result "1-0"]
[ECO "A40"]
[WhiteElo "2349"]
[BlackElo "2211"]
[Annotator "TA"]
[PlyCount "105"]
[EventDate "2024.01.26"]
[EventType "tourn"]
[EventCountry "HUN"]
[SourceTitle "playchess.com"]
[Source "ChessBase"]
[SourceQuality "1"]
[TimeControl "5400+30"]

{[%evp 39,105,-5,21,20,245,237,227,238,242,237,330,362,384,403,397,386,384,339,398,389,394,350,421,404,397,408,464,407,381,377,754,840,846,845,742,607,29985,29982,29987,960,960,960,960,960,960,960,960,960,961,905,5057,1731,1234,1112,29967,29969,29964,29965,29975,29970,29962,5114,29978,29978,29976,29979,29978,29978]} 1. d4 {[%emt 0:05:16]} g6 {[%emt 0:00:04]} 2. c4 {[%emt 0:00:38]} Bg7 {[%emt 0:00:09]} 3. e4 {[%emt 0:00:08]} d6 {[%emt 0:00:19]} 4. Nc3 {[%emt 0:00:09]} c5 {[%emt 0:03:24]} 5. d5 {[%emt 0:00:46]} e6 {[%emt 0:01:32]} 6. Nf3 {[%emt 0:00:31]} Ne7 {[%emt 0:00:12]} 7. Be2 {[%emt 0:04:13]} O-O {[%emt 0:00:08] A43: Schmid Benoni.} 8. h3 {[%emt 0:00:31]} a6 {[%emt 0:00:16]} 9. a4 {[%emt 0:00:23]} h6 {[%emt 0:01:09]} 10. O-O {[%emt 0:00:52]} g5 $146 {[%emt 0:00:40]} ({Predecessor:} 10... exd5 11. cxd5 g5 12. Re1 Ng6 13. Nd2 Nd7 14. a5 Nde5 15. Bf1 f5 16. exf5 Bxf5 {0-1 Garcia De Dios,J (2229)-Kuzmicz,K (2466) Titled Tuesday intern op 01st Aug Late blitz 2023 (3)}) 11. Re1 {[%emt 0:07:38]} Ng6 {[%emt 0:02:44]} 12. Nh2 {[%emt 0:06:21]} Qe7 {[%emt 0:12:31]} 13. Nf1 {[%emt 0:01:43]} Nd7 {[%emt 0:12:48]} 14. Ng3 {[%emt 0:01:03]} Nf6 {[%emt 0:01:33]} 15. Be3 {[%emt 0:01:10]} b6 {[%emt 0:06:43]} 16. a5 {[%emt 0:05:58]} bxa5 {[%emt 0:01:22]} 17. Rxa5 {[%emt 0:00:36]} Rb8 {[%emt 0:00:15]} 18. Ra2 {[%emt 0:05:33]} Ne8 {[%emt 0:04:00]} 19. Nh5 {[%emt 0:03:20]} Be5 {[%emt 0:03:13]} 20. Qd2 {[%emt 0:02:01]} Ng7 {[%emt 0:08:10]} 21. f4 {[%emt 0:02:19]} Nxh5 $2 {[%emt 0:14:33]} (21... Bd4 $11 {and Black has nothing to worry.}) 22. fxe5 $18 {[%emt 0:00:21]} Nhf4 {[%emt 0:00:11]} 23. exd6 {[%emt 0:00:47]} Qxd6 {[%emt 0:00:39]} 24. Bf1 $1 {[%emt 0:01:47]} Bd7 {[%emt 0:08:34]} 25. e5 {[%emt 0:03:52]} Qxe5 {[%emt 0:02:00]} 26. Bxc5 {[%emt 0:00:42]} (26. Rxa6 g4 27. Ra7 (27. Bxc5 Rxb2 28. Qxb2 Qxe1 $18) (27. hxg4 exd5 28. cxd5 Rb3 $18) 27... Bc8 28. Bxc5 Rxb2 29. Rxe5 (29. Qxb2 Qxe1 30. Ra1 Qe5 $18) 29... Rxd2 $18) 26... Qc7 {[%emt 0:01:49]} 27. Bxf8 {[%emt 0:00:26]} Rxf8 {[%emt 0:00:30]} 28. Qf2 {[%emt 0:03:34]} Ne5 {[%emt 0:00:55]} 29. Ne4 {[%emt 0:01:29]} (29. Rxa6 Nfd3 30. Bxd3 Nxd3 $18) (29. Qd4 Nxh3+ 30. Kh1 Nf2+ 31. Kg1 (31. Qxf2 $2 Ng4 $19) 31... Nh3+ 32. Kh1 Nf2+ 33. Kg1 (33. Qxf2 $2 Ng4 $19) 33... Nh3+ $11) 29... f5 {[%emt 0:06:03]} 30. Nc5 {[%emt 0:00:21]} Bc8 {[%emt 0:01:35]} 31. b4 {[%emt 0:02:56]} (31. Nxa6 Qd6 32. Qe3 (32. Qc5 Nf3+ 33. gxf3 Nxh3+ 34. Kg2 Qf4 $18) 32... Nfg6 $18) 31... exd5 {[%emt 0:00:45]} 32. cxd5 {[%emt 0:00:49]} (32. Nxa6 Qg7 33. Nc5 dxc4 $18) 32... Re8 {[%emt 0:00:09]} 33. Ne6 {[%emt 0:06:07]} (33. Nxa6 Qd6 34. Kh1 Nxd5) 33... Bxe6 {[%emt 0:00:15]} 34. dxe6 {[%emt 0:00:09]} Ned3 $2 {[%emt 0:01:15] [#]} (34... Qg7 35. Rea1 (35. Bxa6 Nfd3 $18) 35... Qe7 36. Rxa6 Qxb4) 35. Bxd3 $1 $18 {[%emt 0:00:15]} Nxd3 {[%emt 0:00:04]} 36. Qxf5 {[%emt 0:00:53]} (36. Rc2 Qh7 37. Qf1 Nxe1 38. Qxe1 Qa7+ 39. Kh1 Qb6 $14) 36... Qa7+ {[%emt 0:00:07]} 37. Kh1 {[%emt 0:04:39]} Nxe1 {[%emt 0:00:06]} 38. Qg6+ {[%emt 0:00:04]} Kf8 {[%emt 0:00:10]} 39. Qf6+ {[%emt 0:00:10]} (39. Qxh6+ Qg7 40. e7+ Rxe7 (40... Kxe7 41. Qxg7+ Ke6 42. Qxg5 Kd7 43. Rxa6 Nd3 44. Qd5+ Ke7 45. Re6+ Kf8 46. Qf5+ Kg8 47. Qg6+ Kh8 48. Rxe8#) 41. Qxa6 (41. Qxg7+ Kxg7 42. Rxa6 Re4 $17) 41... Kg8 $11) (39. Ra5 $142 Ke7 40. Qf7+ (40. Qxh6 Qa8 $18) 40... Kd6 41. Qxa7 Kxe6 42. Qb6+ (42. Qxa6+ Ke7 43. Qc6 Kf7 44. Rf5+ Ke7 45. Rf6 Rh8 46. Qe6+ Kd8 47. Rf7 h5 48. Qd7#) (42. Rxa6+ Kd5 43. Qc5+ Ke4 44. Rd6 Nc2 45. Qxc2+ Ke5 46. Qc5+ Kf4 47. Qf2+ Ke5 48. Qd4+ Kf5 49. g4#) 42... Kf7 43. Rxa6 (43. Qxa6 Kg7 44. Qa7+ Kg6 45. Qd7 Rf8 46. Ra6+ Rf6 47. Qe8+ Kg7 48. Ra7+ Rf7 49. Qxf7+ Kh8 50. Qh7#) 43... h5 44. Qg6+ Kf8 45. Qh6+ (45. Qxh5 Re3 46. Qh8+ Kf7 47. Qf6+ Ke8 48. Ra7 Rxh3+ 49. gxh3 Nd3 50. Qh8#) (45. Rf6+ Ke7 46. Rf7+ Kd8 47. Qd6+ Kc8 48. Qc7#) (45. Ra7 Re7 46. Ra8+ Re8 47. Rxe8#) 45... Kg8 46. Rg6+ Kf7 47. Qg7#) 39... Kg8 $18 {[%emt 0:00:07] [#]} 40. Rf2 $1 {[%emt 0:00:58]} (40. Qxh6 Qg7 41. Qxg7+ Kxg7 42. Rxa6 Nd3 $15) 40... Qxf2 {[%emt 0:02:54]} 41. Qxf2 {[%emt 0:00:06]} Rxe6 {[%emt 0:00:07]} 42. Qf5 {[%emt 0:00:27]} Rd6 {[%emt 0:02:54]} 43. Qe5 {[%emt 0:02:31]} Rd1 {[%emt 0:00:03]} 44. Kh2 {[%emt 0:00:02]} Kh7 {[%emt 0:01:53]} 45. Qc7+ {[%emt 0:00:37]} (45. Qe4+ $142 Kg7 46. Qb7+ Kh8 47. Qxa6 Nf3+ 48. gxf3 Rd2+ 49. Kg3) 45... Kg6 $18 {[%emt 0:00:40]} 46. Qc6+ {[%emt 0:00:11]} Kh7 {[%emt 0:01:07]} 47. Qb7+ {[%emt 0:00:11]} Kg8 {[%emt 0:01:22]} 48. Qxa6 {[%emt 0:00:13]} Kh7 {[%emt 0:00:37]} 49. Qb7+ {[%emt 0:00:19]} Kg8 {[%emt 0:00:38]} 50. Qc6 {[%emt 0:00:09]} (50. Qe4 $142 Nxg2 51. Qg6+ (51. Kxg2 Rd2+ 52. Kg3 Kf8 $18) (51. Qxg2 Rd6 $18) 51... Kh8 52. Qxh6+ (52. Kxg2 Re1 $18) 52... Kg8 53. Qxg5+ (53. Kxg2 Rd2+ 54. Kf3 Kf7 $18) 53... Kf8 54. Qxg2 (54. Kxg2 Re1 $18) 54... Rd7 55. h4) 50... Kh7 {[%emt 0:00:21]} 51. Qe4+ {[%emt 0:00:17]} Kg7 {[%emt 0:00:31]} 52. b5 {[%emt 0:00:05]} Nd3 {[%emt 0:00:24]} 53. Qe2 {[%emt 0:00:12]} 1-0

[Event "SixDays Budapest GM-A January 2024"]
[Site "Budapest"]
[Date "2024.01.29"]
[Round "4.5"]
[White "Barrish, Daniel"]
[Black "Berczes, David"]
[Result "1-0"]
[ECO "E32"]
[WhiteElo "2347"]
[BlackElo "2439"]
[Annotator "TA"]
[PlyCount "67"]
[EventDate "2024.01.26"]
[EventType "tourn"]
[EventCountry "HUN"]
[SourceTitle "playchess.com"]
[Source "ChessBase"]
[SourceQuality "1"]
[TimeControl "5400+30"]

{[%evp 16,67,12,29,18,25,47,45,36,47,90,87,84,103,104,90,102,70,67,66,65,69,69,51,60,52,89,43,80,90,97,88,116,89,98,103,124,94,260,267,368,356,358,194,367,351,373,365,797,824,839,824,847,814]} 1. d4 {[%emt 0:20:19]} Nf6 {[%emt 0:00:41]} 2. c4 {[%emt 0:00:17]} e6 {[%emt 0:00:03]} 3. Nc3 {[%emt 0:00:05]} Bb4 {[%emt 0:00:03]} 4. Qc2 {[%emt 0:00:05]} d6 {[%emt 0:00:08]} 5. e3 {[%emt 0:00:22]} O-O {[%emt 0:01:44]} 6. Bd3 {[%emt 0:00:07]} c5 {[%emt 0:00:45]} 7. Nf3 {[%emt 0:01:10]} Nc6 {[%emt 0:02:47]} 8. O-O {[%emt 0:01:42]} Bxc3 {[%emt 0:04:54]} 9. Qxc3 {[%emt 0:01:35]} e5 {[%emt 0:00:28] [#] Hoping for ...e4.} 10. d5 {[%emt 0:00:33]} Ne7 {[%emt 0:01:11] And now ...e4 would win.} 11. Nd2 {[%emt 0:00:19]} b5 {[%emt 0:19:18] White is slightly better.} 12. b3 {[%emt 0:00:51][%cal Bb2b3,Bb3c4][%mdl 32]} Bb7 {[%emt 0:01:04]} 13. Qc2 {[%emt 0:04:08] White is more active.} (13. cxb5 $6 Nexd5 14. Qb2 a6 $11) 13... Ng6 {[%emt 0:04:21]} 14. Bb2 {[%emt 0:01:29]} (14. cxb5 Nxd5 15. a3 Nh4 $14) 14... Qe7 {[%emt 0:02:54]} 15. Rae1 {[%emt 0:03:49]} ({Reject} 15. cxb5 Nxd5 16. a3 a6 $11) 15... Rfe8 {[%emt 0:01:26]} 16. Qb1 {[%emt 0:00:47]} ({Resist} 16. cxb5 Nxd5 17. a3 Nb6 $14) 16... bxc4 {[%emt 0:01:57]} 17. bxc4 {[%emt 0:00:11]} Rab8 {[%emt 0:00:20]} 18. f4 {[%emt 0:03:16]} Ba6 {[%emt 0:05:28]} 19. Bxg6 {[%emt 0:10:05]} hxg6 {[%emt 0:00:50]} 20. fxe5 {[%emt 0:00:10]} dxe5 {[%emt 0:12:11][%cal Of6d5]} 21. Qc2 {[%emt 0:02:16]} (21. e4 $16) 21... Nd7 {[%emt 0:05:10]} 22. e4 {[%emt 0:06:11]} Nb6 {[%emt 0:01:46][%cal Ob6c4]} 23. Ba3 {[%emt 0:00:52]} Rbc8 {[%emt 0:03:28]} 24. Rc1 {[%emt 0:03:44]} Qd7 {[%emt 0:01:31]} 25. Rf3 {[%emt 0:00:56]} Qg4 {[%emt 0:05:22]} 26. Qc3 {[%emt 0:03:53] [#] Strongly threatening Qa5.} Qg5 $2 {[%emt 0:03:00] This move loses the game for Black.} (26... Qd7 $16 27. Rg3 Qa4) 27. Qa5 $18 {[%emt 0:02:41][%csl LRa6,LRc5]} Bb7 {[%emt 0:01:39]} 28. Qxa7 {[%emt 0:02:53]} ({Weaker is} 28. Bxc5 Rxc5 29. Qxc5 Qxd2 $16) 28... Re7 {[%emt 0:02:52][%cal Be8e7,Be7b7,Bb7b1][%mdl 32]} 29. Rc2 {[%emt 0:10:27]} (29. Rd3 $142 Bxd5 30. Qxb6) 29... Bxd5 $2 {[%emt 0:03:28]} (29... Nxc4 {was called for.} 30. Nxc4 Bxd5) 30. Qxb6 {[%emt 0:02:58]} Rb7 {[%emt 0:00:17]} 31. Qa6 {[%emt 0:03:16]} Bxe4 {[%emt 0:01:46]} (31... Bc6 32. Bxc5 Qd8) 32. Nxe4 {[%emt 0:01:21] White is clearly winning.} Rb1+ {[%emt 0:00:09]} 33. Rf1 {[%emt 0:01:34]} Qe3+ {[%emt 0:00:18]} 34. Nf2 {[%emt 0:00:48] Weighted Error Value: White=0.17 (very precise) /Black=0.34.  Loses game:     	---       	Black=1      Mistake:       	White=2     	Black=2      Inaccurate:     	White=1     	Black=5      OK:         	White=13    	Black=8      Best:        	White=1     	---} 1-0

[Event "SixDays Budapest GM-A January 2024"]
[Site "Budapest"]
[Date "2024.01.29"]
[Round "5.1"]
[White "Berczes, David"]
[Black "Can, Isik"]
[Result "1/2-1/2"]
[ECO "A46"]
[WhiteElo "2439"]
[BlackElo "2500"]
[Annotator "TA"]
[PlyCount "103"]
[EventDate "2024.01.26"]
[EventType "tourn"]
[EventCountry "HUN"]
[SourceTitle "playchess.com"]
[Source "ChessBase"]
[SourceQuality "1"]
[TimeControl "5400+30"]

{[%evp 11,103,-2,2,3,21,10,17,22,16,17,13,14,12,8,8,0,16,11,19,5,16,0,30,18,18,23,25,-8,-19,-15,38,36,42,50,53,41,57,11,38,0,6,0,33,0,12,15,24,0,0,0,112,123,109,0,23,0,113,112,106,96,86,44,54,58,104,24,21,21,84,82,163,172,150,-28,-37,-32,-32,-16,-19,-19,-8,-8,-8,-8,-8,-84,-8,-8,-8,-8,-8,-8,0,0]} 1. d4 {[%emt 0:19:47]} Nf6 {[%emt 0:00:05]} 2. Nf3 {[%emt 0:02:50]} e6 {[%emt 0:00:07]} 3. e3 {[%emt 0:01:37]} b6 {[%emt 0:01:29]} 4. Bd3 {[%emt 0:00:14]} Bb7 {[%emt 0:00:11]} 5. O-O {[%emt 0:00:14]} c5 {[%emt 0:04:02]} 6. Nbd2 {[%emt 0:02:39]} d5 {[%emt 0:04:48]} 7. b3 {[%emt 0:00:56]} cxd4 {[%emt 0:00:30]} 8. exd4 {[%emt 0:00:54]} Bd6 {[%emt 0:00:05]} 9. Bb2 {[%emt 0:00:14]} Nc6 {[%emt 0:01:10]} 10. a3 {[%emt 0:03:24]} O-O {[%emt 0:02:29]} 11. Ne5 {[%emt 0:00:10][%cal Bf3e5,Be5g4,Bg4h6][%mdl 32]} Ne7 {[%emt 0:03:01]} 12. Qe2 {[%emt 0:02:57]} Rc8 {[%emt 0:10:23]} 13. f4 {[%emt 0:05:38]} Ne8 {[%emt 0:02:37]} 14. Rae1 {[%emt 0:23:01]} g6 {[%emt 0:01:23]} 15. Ndf3 {[%emt 0:29:25]} Ng7 {[%emt 0:05:11]} 16. Ng4 {[%emt 0:02:30] Strongly threatening Nh6+.} f6 {[%emt 0:05:54][%cal Oh7h5]} 17. Nh6+ {[%emt 0:01:54]} Kh8 {[%emt 0:00:03] [#]} 18. Ne5 $1 {[%emt 0:00:34]} Qe8 {[%emt 0:03:10][%cal Oe7f5] Against Nef7+} (18... fxe5 19. fxe5) 19. Bb5 {[%emt 0:00:29]} Nc6 {[%emt 0:00:01]} 20. c4 {[%emt 0:00:32][%cal Oc4d5]} a6 {[%emt 0:07:22]} (20... fxe5 $11 21. fxe5 Bb8) 21. cxd5 $1 $14 {[%emt 0:00:29]} axb5 {[%emt 0:03:10]} 22. dxc6 {[%emt 0:00:04]} Bxc6 {[%emt 0:00:28]} 23. Nxc6 {[%emt 0:00:56]} Qxc6 {[%emt 0:00:02] [#]} 24. d5 {[%emt 0:00:17]} Qxd5 {[%emt 0:00:57]} 25. Rd1 {[%emt 0:00:20]} Qc6 {[%emt 0:14:09]} 26. Rc1 {[%emt 0:00:07]} Qd7 {[%emt 0:06:10]} 27. Rcd1 {[%emt 0:00:06][%mdl 1024] White has compensation.} Qe7 {[%emt 0:05:01]} 28. b4 {[%emt 0:00:37][%cal Og2g3]} Nf5 {[%emt 0:01:56]} 29. Ng4 {[%emt 0:01:04][%cal Og4f6]} Kg8 {[%emt 0:11:07]} 30. Rfe1 {[%emt 0:00:57]} Rce8 {[%emt 0:02:01]} (30... Bxf4 $11 31. g3 Bg5) 31. Qxb5 $16 {[%emt 0:00:19] Black must now prevent Bxf6.} Rd8 {[%emt 0:03:49]} 32. Qc4 {[%emt 0:00:28] White is much more active.} (32. Qxb6 $16 {g3 is the strong threat.} h5 33. Nf2) 32... b5 {[%emt 0:00:39]} 33. Qc3 {[%emt 0:00:42][%cal Rg4f6]} Qa7+ {[%emt 0:01:57]} (33... Kg7 $11) 34. Kh1 {[%emt 0:00:26]} Be7 {[%emt 0:00:04][%cal Bd6e7,Be7d8,Bd8b6][%mdl 32]} 35. Rxd8 Bxd8 {[%emt 0:00:02]} 36. Qb3 {[%emt 0:01:06]} Kg7 {[%emt 0:01:18]} 37. Qxe6 {[%emt 0:00:20] Hoping for Rd1.} Qf7 {[%emt 0:01:20]} (37... Rf7 $14 {is more appropriate.}) 38. Qxf7+ {[%emt 0:00:30]} (38. Qc6 $16) 38... Kxf7 $11 {[%emt 0:00:25]} 39. Nf2 {[%emt 0:00:34]} Bb6 {[%emt 0:00:44]} (39... Nd6 $11) 40. Ne4 $16 {[%emt 0:00:18]} Re8 {[%emt 0:00:20]} (40... h5 $16 {was called for.}) 41. g4 $1 $18 Re6 {[#]} 42. gxf5 {[%emt 0:01:18]} (42. Bxf6 $1 $16 {And now Ng5+ would win.} Rxe4 43. Rxe4) 42... gxf5 $11 {[%emt 0:00:02][%cal Of7g6]} 43. Ng5+ {[%emt 0:00:27]} fxg5 {[%emt 0:00:01]} 44. Rxe6 {[%emt 0:00:06]} Kxe6 {[%emt 0:00:01]} 45. fxg5 $15 {[%emt 0:00:06][%mdl 4096] Endgame. KB-KB} Kf7 {[%emt 0:02:32]} 46. Kg2 {[%emt 0:00:21]} Kg6 {[%emt 0:00:25]} 47. Bc1 {[%emt 0:01:28]} Bc7 {[%emt 0:00:43]} 48. h3 {[%emt 0:00:33] [#]} (48. h4 $1 $11) 48... Be5 {[%emt 0:00:25]} (48... Kh5 $1 $17) 49. Kf3 {[%emt 0:00:09] The position is equal.} Kh5 {[%emt 0:00:01]} 50. Bf4 $1 {[%emt 0:00:49]} Bb2 {[%emt 0:00:06]} 51. Bd2 {[%emt 0:00:22]} Be5 {[%emt 0:01:08]} 52. Bf4 $1 {[%emt 0:00:39] Weighted Error Value: White=0.19 (very precise) /Black=0.25 (precise) .  Mistake:       	White=5     	Black=7      Inaccurate:     	White=4     	Black=3      OK:         	White=14    	Black=13     Best:        	White=2     	Black=3      Strong:       	White=4     	---} 1/2-1/2